Cogmind - Beta 13 @@@ ROGUE MODE // 2024.04.06 @ 18:43:49 Player: Bernad Result: Destroyed by G-50 Soldier with Heavy Laser Performance ------------- Evolutions (2) 1000 Regions Visited (5) 1000 Robots Destroyed (29) 145 Value Destroyed (743) 743 Prototype IDs (3) 60 Alien Tech Used (0) 0 Bonus (0) 0 TOTAL SCORE: 2948 Bonus ------- None Cogmind --------- Core Integrity 0/550 Matter 33/300 Energy 100/100 System Corruption 2% Temperature Cool (97) Movement Core (50) Location -8/Materials Parts ------- > --- POWER (2) -------- (None) > --- PROPULSION (3) --- (None) > --- UTILITY (3) ------ Advanced Targeting Computer Hacking Suite > --- WEAPON (3) ------- (None) > --- INVENTORY (5) ---- (None) Peak State ------------ > --- POWER ------------ Light Ion Engine > --- PROPULSION ------- Armored Wheel Armored Wheel > --- UTILITY ---------- Advanced Targeting Computer Recoil Stabilizer Hacking Suite > --- WEAPON ----------- Improved Light Cannon Rocket Launcher Mini Grenade Launcher > --- INVENTORY -------- Light Ion Engine Minigun Minigun Mini Grenade Launcher Mining Laser [Rating: 21] Favorites ----------- Power Light Ion Engine Engine Light Ion Engine Power Core Light Nuclear Core Propulsion Armored Wheel Wheel Armored Wheel Utility Hacking Suite Device Recoil Stabilizer Processor Advanced Targeting Computer Hackware Hacking Suite Weapon Assault Rifle Ballistic Gun Assault Rifle Ballistic Cannon Improved Light Cannon Launcher Mini Grenade Launcher Special Weapon Mining Laser Build | -11 -10 -10 -10 -9 -8 ------- Run | Yrd Mat Min Exi Min Mat Slots Evolved 4 | . . . . . 4 Power 1 | . . . . . 1 Propulsion 1 | . . . . . 1 Utility 1 | . . . . . 1 Weapon 1 | . . . . . 1 Parts Attached 30 | 5 8 . . 7 10 Power 4 | 1 1 . . 1 1 Engine 3 | 1 . . . 1 1 Core 1 | . 1 . . . . Reactor . | . . . . . . Propulsion 4 | 2 2 . . . . Treads . | . . . . . . Leg . | . . . . . . Wheel 4 | 2 2 . . . . Hover . | . . . . . . Flight . | . . . . . . Utility 4 | . 1 . . 1 2 Device 1 | . . . . . 1 Storage . | . . . . . . Processor 2 | . . . . 1 1 Hackware 1 | . 1 . . . . Protection . | . . . . . . Artifact . | . . . . . . Weapon 18 | 2 4 . . 5 7 Energy Gun . | . . . . . . Energy Cannon . | . . . . . . Ballistic Gun 7 | 2 1 . . 2 2 Ballistic Cannon 2 | . . . . . 2 Launcher 7 | . 3 . . 3 1 Special Weapon 2 | . . . . . 2 Impact Weapon . | . . . . . . Slashing Weapon . | . . . . . . Piercing Weapon . | . . . . . . Special Melee Weapon . | . . . . . . Unidentified Prototypes . | . . . . . . Parts Lost 13 | . . . . 1 12 Power 3 | . . . . 1 2 Propulsion 2 | . . . . . 2 Utility 1 | . . . . . 1 Weapon 7 | . . . . . 7 Highest Loss Streak 11 | . . . . 1 11 To Critical Strikes . | . . . . . . Average Slot Usage (%) 79 | . 80 85 85 86 70 Engine 5 | . 9 . . 1 6 Core 6 | . 4 14 14 11 . Wheel 24 | . 27 28 28 28 14 Device 1 | . . . . . 6 Processor 3 | . . . . 1 9 Hackware 11 | . 10 14 14 14 9 Ballistic Gun 10 | . 21 . . 10 1 Ballistic Cannon 2 | . . . . . 7 Launcher 14 | . 6 28 28 17 16 Naked Turns . | . . . . . . Heaviest Build 13 | 7 9 7 7 9 13 Greatest Support 24 | 20 24 24 24 24 24 Greatest Overweight (x) 3 | . 2 . . . 3 Average Overweight (x) . | . . . . . . Largest Inventory Capacity 5 | 5 5 5 5 5 5 Average Capacity 5 | 5 5 5 5 5 5 Most Carried 5 | 3 5 5 5 5 5 Average Carried 3 | 1 4 5 5 4 4 Final Capacity 5 | 5 5 5 5 5 5 Final Carried 5 | 1 5 5 5 5 . Class Distribution -------------------- 78% | Mutant 21% | Gunner Dominant Class ---------------- Mutant | -10/Materials Mutant | -10/Mines Mutant | -10/Exiles Mutant | -9/Mines Gunner | -8/Materials Resources | -11 -10 -10 -10 -9 -8 ----------- Run | Yrd Mat Min Exi Min Mat Matter Collected 703 | 262 184 . . 64 193 Remotely . | . . . . . . Salvage Created 683 | 36 311 . . 38 298 Parts 48 | 1 20 . . 9 18 Haulers Intercepted 1 | . . . . . 1 Recyclers Shooed . | . . . . . . Parts Field Recycled . | . . . . . . Retrieved Matter . | . . . . . . Parts Self-Destructed . | . . . . . . Prevented . | . . . . . . Kills | -11 -10 -10 -10 -9 -8 ------- Run | Yrd Mat Min Exi Min Mat Combat Hostiles Destroyed 21 | 1 8 . . 8 4 Guns 7 | 1 5 . . . 1 Cannons 2 | . . . . . 2 AOE 12 | . 3 . . 8 1 Classes Destroyed 9 | 1 2 . . 2 4 Worker 2 | . . . . . 2 Hauler 1 | . . . . . 1 Recycler 1 | . . . . . 1 Operator 1 | . 1 . . . . Watcher 3 | . 1 . . . 2 Swarmer 7 | . . . . 7 . Grunt 12 | 1 8 . . . 3 Demolisher 1 | . . . . 1 . Hunter 1 | . . . . . 1 Best Kill Streak 4 | 1 3 . . 4 4 Combat Bots Only 4 | 1 3 . . 4 2 Max Kills in Single Turn 4 | 1 3 . . 4 2 Gunslinging . | . . . . . . Exploded 4 | . 3 . . 4 1 Melee . | . . . . . . Uniques/NPCs Destroyed . | . . . . . . Combat | -11 -10 -10 -10 -9 -8 -------- Run | Yrd Mat Min Exi Min Mat Hostile Shots Fired 151 | 4 16 . . 10 121 Missed 45 | 2 3 . . 1 39 Damage Taken 1894 | 21 165 . . 260 1448 Core 784 | 10 14 . . 206 554 Absorbed by Shields . | . . . . . . Core Remaining (%) 52 | 96 . . . 8 . Volleys Fired 56 | 2 15 . . 7 32 Largest 3 | 2 2 . . 2 3 Hottest 130 | 40 60 . . 60 130 Shots Fired 99 | 4 30 . . 14 51 Gun 45 | 4 28 . . . 13 Cannon 24 | . . . . . 24 Launcher 30 | . 2 . . 14 14 Special . | . . . . . . Kinetic 69 | 4 28 . . . 37 Thermal . | . . . . . . Explosive 30 | . 2 . . 14 14 Electromagnetic . | . . . . . . Robot Hit Streak 6 | 2 4 . . 4 6 Robot Miss Streak 4 | 1 1 . . 2 4 Penetration Max . | . . . . . . Secondary Targets 1 | . 1 . . . . Max Gunslinging Chain 1 | . 1 . . . . Shots Hit Robots 53 | 2 18 . . 5 28 Core Hits 57 | 2 17 . . 13 25 Critical Kills . | . . . . . . Critical Parts Destroyed . | . . . . . . Critical Strikes . | . . . . . . Melee Attacks . | . . . . . . Impact . | . . . . . . Slashing . | . . . . . . Piercing . | . . . . . . Sneak Attacks . | . . . . . . Combat Hostiles . | . . . . . . Follow-up Attacks . | . . . . . . Damage Inflicted 2163 | 22 461 . . 576 1104 Guns 395 | 22 234 . . . 139 Cannons 261 | . . . . . 261 Explosions 1484 | . 227 . . 576 681 Melee . | . . . . . . Ramming 23 | . . . . . 23 Kinetic 656 | 22 234 . . . 400 Thermal . | . . . . . . Explosive 1484 | . 227 . . 576 681 Electromagnetic . | . . . . . . Impact . | . . . . . . Slashing . | . . . . . . Piercing . | . . . . . . Highest Corruption 2 | . . . . . 2 Average Corruption 2 | . . . . . 2 Corruption Purged . | . . . . . . Corruption Blocked . | . . . . . . Effects 1 | . . . . . 1 Energy Discharges 1 | . . . . . 1 Overload Shots . | . . . . . . Overflow Damage 117 | . . . . 80 37 Projectiles . | . . . . . . Explosions 117 | . . . . 80 37 Melee . | . . . . . . Knockbacks 1 | . . . . . 1 Impact . | . . . . . . Kinetic 1 | . . . . . 1 Secondary . | . . . . . . Self-Inflicted Damage 114 | . . . . . 114 Shots 3 | . . . . . 3 Rammed 4 | . . . . . 4 Targets Rammed 4 | . . . . . 4 Kicked . | . . . . . . Crushed . | . . . . . . Highest Temperature 101 | . 20 . . 15 101 Average Temperature 26 | . 8 . . 7 40 Received Heat Transfer 807 | 12 111 . . . 684 Siege Activations . | . . . . . . Robots Corrupted . | . . . . . . Combat Hostiles . | . . . . . . Parts Fried . | . . . . . . Impact Corruptions . | . . . . . . Robots Melted . | . . . . . . Combat Hostiles . | . . . . . . Parts Melted . | . . . . . . Heat Transferred . | . . . . . . Parts Sabotaged . | . . . . . . Parts Stolen . | . . . . . . Parts Stripped . | . . . . . . Power Chain Reactions . | . . . . . . Alert | -11 -10 -10 -10 -9 -8 ------- Run | Yrd Mat Min Exi Min Mat Peak Influence 276 | 20 261 101 . 266 276 Initial 103 | . 13 101 . . 103 Average 128 | 15 121 101 . 177 184 Maximum Alert Level 1 | . 1 . . 1 1 Low Security (%) 81 | 100 82 100 . 82 60 Level 1 18 | . 17 . . 17 39 Level 2 . | . . . . . . Level 3 . | . . . . . . Level 4 . | . . . . . . Level 5 . | . . . . . . High Security . | . . . . . . Max Security . | . . . . . . Squads Dispatched 4 | . 3 . . . 1 Investigation 2 | . 2 . . . . Extermination . | . . . . . . Reinforcement 2 | . 1 . . . 1 Assault . | . . . . . . Garrison . | . . . . . . Intercept . | . . . . . . Searches Triggered . | . . . . . . Construction Impeded 1 | . . . . . 1 Haulers Reinforced . | . . . . . . Active Scanning Responses . | . . . . . . Cargo Convoy Interrupts . | . . . . . . Stealth | -11 -10 -10 -10 -9 -8 --------- Run | Yrd Mat Min Exi Min Mat Distress Signals 1 | . . . . . 1 Communications Jammed . | . . . . . . Distress Signals . | . . . . . . Times Spotted 31 | 1 10 . . 4 16 Peak Tracking Total 7 | 1 3 . . 3 7 Tactical Retreats 1 | . . . . . 1 Traps | -11 -10 -10 -10 -9 -8 ------- Run | Yrd Mat Min Exi Min Mat Traps Triggered . | . . . . . . Indirectly . | . . . . . . Trap Hack Attempts . | . . . . . . Triggered . | . . . . . . Disarmed . | . . . . . . Reprogrammed . | . . . . . . Reused . | . . . . . . Traps Extracted . | . . . . . . Installed . | . . . . . . Triggered . | . . . . . . Machines | -11 -10 -10 -10 -9 -8 ---------- Run | Yrd Mat Min Exi Min Mat Machines Disabled . | . . . . . . Max in Single Turn . | . . . . . . Machines Repaired . | . . . . . . Machines Dismantled . | . . . . . . Machines Sabotaged . | . . . . . . Overloaded Fab Kills . | . . . . . . Hacking | -11 -10 -10 -10 -9 -8 --------- Run | Yrd Mat Min Exi Min Mat Machines Accessed 4 | . 4 . . . . Terminals 4 | . 4 . . . . Fabricators . | . . . . . . Repair Stations . | . . . . . . Recycling Units . | . . . . . . Scanalyzers . | . . . . . . Garrison Access . | . . . . . . Total Hacks 12 | . 12 . . . . Successful 8 | . 8 . . . . Failed 4 | . 4 . . . . Catastrophic 1 | . 1 . . . . Database Lockouts . | . . . . . . Manual . | . . . . . . Terminals 12 | . 12 . . . . Fabricators . | . . . . . . Repair Stations . | . . . . . . Recycling Units . | . . . . . . Scanalyzers . | . . . . . . Garrison Access . | . . . . . . Terminal Hacks 8 | . 8 . . . . Record 3 | . 3 . . . . Prototype ID Bank 1 | . 1 . . . . Emergency Access Points 2 | . 2 . . . . Alert Level 1 | . 1 . . . . Dispatch Records 1 | . 1 . . . . Fabricator Hacks . | . . . . . . Repair Station Hacks . | . . . . . . Recycling Unit Hacks . | . . . . . . Scanalyzer . | . . . . . . Garrison Access Hacks . | . . . . . . Unauthorized Hacks . | . . . . . . Terminals . | . . . . . . Fabricators . | . . . . . . Repair Stations . | . . . . . . Recycling Units . | . . . . . . Scanalyzers . | . . . . . . Garrison Access . | . . . . . . Data Cores Recovered . | . . . . . . Used . | . . . . . . Hacking Detections 4 | . 4 . . . . Full Trace Events 2 | . 2 . . . . Feedback Events . | . . . . . . Feedback Blocked . | . . . . . . Robot Schematics Acquired . | . . . . . . Robots Built . | . . . . . . Authchips . | . . . . . . Time . | . . . . . . Total Robot Build Rating . | . . . . . . Part Schematics Acquired . | . . . . . . Parts Built . | . . . . . . Authchips . | . . . . . . Time . | . . . . . . Total Part Build Rating . | . . . . . . Parts Repaired . | . . . . . . Time . | . . . . . . Parts Recycled . | . . . . . . Recycled Matter . | . . . . . . Retrieved Matter . | . . . . . . Retrieved Components . | . . . . . . Parts Scanalyzed . | . . . . . . Part Schematics Acquired . | . . . . . . Parts Damaged . | . . . . . . Bothacking | -11 -10 -10 -10 -9 -8 ------------ Run | Yrd Mat Min Exi Min Mat Used RIF Installer . | . . . . . . Robots Hacked . | . . . . . . Non-combat . | . . . . . . Combat . | . . . . . . Robot Hacks Applied . | . . . . . . Relay Couplers Released . | . . . . . . Fabnet Peak Effective % . | . . . . . . Robots Rewired . | . . . . . . Allies Hacked . | . . . . . . Hacks Repelled . | . . . . . . Allies | -11 -10 -10 -10 -9 -8 -------- Run | Yrd Mat Min Exi Min Mat Total Allies . | . . . . . . Largest Group . | . . . . . . Highest-Rated Group . | . . . . . . Highest-Rated Ally . | . . . . . . Total Orders . | . . . . . . Ally Attacks . | . . . . . . Total Damage . | . . . . . . Kills . | . . . . . . Allies Corrupted . | . . . . . . Allies Melted . | . . . . . . Intel | -11 -10 -10 -10 -9 -8 ------- Run | Yrd Mat Min Exi Min Mat Robot Analysis Total . | . . . . . . Derelict Logs Recovered . | . . . . . . Drone Launches . | . . . . . . Drone Recoveries . | . . . . . . Exploration | -11 -10 -10 -10 -9 -8 ------------- Run | Yrd Mat Min Exi Min Mat Turns Passed 1208 | 244 292 44 31 314 283 Spaces Moved 942 | 91 270 49 35 312 185 Core 36 | 23 2 . . . 11 Treads . | . . . . . . Legs . | . . . . . . Wheels 906 | 68 268 49 35 312 174 Hover . | . . . . . . Flight . | . . . . . . Fastest Speed 50 | 50 80 90 90 90 50 Average Speed 86 | 72 82 90 90 90 90 Slowest Speed 200 | 80 150 90 90 90 200 Overloaded Moves . | . . . . . . Propulsion Burnouts . | . . . . . . Robots Hopped . | . . . . . . Cave-ins Triggered . | . . . . . . Exploration Rate (%) 26 | 9 34 17 8 69 23 Regions Visited 5 Branch Regions 3 Pre-discovered Areas . | . . . . . . Known Exits Taken . | . . . . . . Unknown Exits Taken 5 | 1 1 1 1 1 . Scrap Searched . | . . . . . . Spaces Dug . | . . . . . . Terrain Destroyed 190 | . 13 . . 97 80 Melee . | . . . . . . Projectile . | . . . . . . AOE 190 | . 13 . . 97 80 Terrain Rammed . | . . . . . . Walls Destroyed . | . . . . . . Machines Disabled . | . . . . . . Actions | -11 -10 -10 -10 -9 -8 --------- Run | Yrd Mat Min Exi Min Mat Total 1233 | 264 308 48 34 329 250 Wait 177 | 161 2 . . . 14 Move 937 | 90 269 48 34 311 185 Hop . | . . . . . . Pick Up 19 | 6 8 . . 3 2 Fast Attach 6 | . 3 . . . 3 Attach 13 | 5 1 . . 2 5 Detach . | . . . . . . Swap 11 | . 4 . . 5 2 Drop 10 | . 6 . . 1 3 Fire 56 | 2 15 . . 7 32 Melee . | . . . . . . Ram 4 | . . . . . 4 Kick . | . . . . . . Crush . | . . . . . . Escape Stasis . | . . . . . . Rewire . | . . . . . . Trap . | . . . . . . Miscellaneous . | . . . . . . Route ------- -11/Scrapyard -10/Materials -10/Mines -10/Exiles -9/Mines -8/Materials History --------- Turn | Location | Event 2 | -11/Scrapyard | Met Revision 17 50 | -11/Scrapyard | Discovered new exit (range 8) 245 | -11/Scrapyard | Entered Materials 307 | -10/Materials | Build established: Mutant 467 | -10/Materials | Discovered new exit (range 9) 537 | -10/Materials | Entered Mines 576 | -10/Mines | Deemed a non-threat by the Exiles lab entrance 576 | -10/Mines | Discovered new exit (range 5) 581 | -10/Mines | Entered Exiles 600 | -10/Exiles | Discovered new exit (range 15) 612 | -10/Exiles | Entered Mines 675 | -9/Mines | Assembled infested the area 680 | -9/Mines | Assisted by a Guerilla fighting off Assembled 876 | -9/Mines | Core integrity fell below 50% 880 | -9/Mines | Core integrity fell below 20% 900 | -9/Mines | Discovered new exit (range 8) 915 | -9/Mines | Received a Rocket Launcher from a helpful Derelict 926 | -9/Mines | Entered Materials 926 | -8/Materials | Evolved 4 slots: Power x1, Propulsion x1, Utility x1, Weapon x1 1175 | -8/Materials | Core integrity fell below 50% 1207 | -8/Materials | Core integrity fell below 20% 1209 | -8/Materials | Destroyed by G-50 Soldier with Heavy Laser Last Messages --------------- Terminal disabled. K-01 Serf collects debris. Destroyed Aluminum Leg. Minigun destroyed. Lgt. Ion Engine destroyed. K-01 Serf collects debris. Minigun destroyed. Slammed into G-47 Trooper. Destabilizing: System interference. Adv. Targeting Computer temporarily disabled. Acquired 26 matter. K-01 Serf collects debris. [Achievement: Let's See Who's Tougher] K-01 Serf destroyed. Mining Laser destroyed. Destroyed Mining Laser. K-01 Serf collects debris. Mni. Grenade Launcher destroyed. Critical hit (Burn: +37). K-01 Serf collects debris. Map ----- +----------------------------------------------------+ | ?????# ??????????????# """ ""????????????????? | | ?????# ??????????????# """ """???????????????? | | ?????# ??????????????# """ """ ???????????? | | ?????# ########??????# ???????????? | | ?###?# #[[!!!!#??????# ???????????? | | #?# #[[!!!!#??????# """ """ ???????????? | | #?# # #??????# """ """???????????????? | | ### # ######## """ """?? ?#??????????? | | ## """ """ #??????????? | | + #??????????? | | " ## #??????????? | | " ?# ############## #??????????? | | " ## #????????????# ############????????????? | | ## #?????????#### #???????????????????????? | | ##### #????????##! #???????????????????????? | | ^^ # = #??#! ######??????????????????? | | " #??#! # ######?????????????? | | ^ # #??#! !%= +?????????????? | | """ # #??#!k = ! #?????????????? | | """"" #? #??##! #?????????????? | | ^""""" #?#####???## g #?????????????? | | """"" ############# #?????????????? | | """ a k = #?????????????? | | % #?????????????? | | g #?????????????? | | #################### =%[@ ########?????????????? | | ???????????????????# *g [ #############???????? | | ???????????????????# *= ??????? | | ???????????????????# ??????? | | ???????????????????# !] ^ ??????? | | ???????????????????## !!] #???????? | | ????????????????????## !!] ^ %"" """ #???????? | | ?????????????????????# ^ """ """???????????? | | ?????????????????????# """ ""????????????? | | ?????????????????????# " " ?????????????? | | ?????????????????????# ?????????????? | | ?????????????????????# gg ??????????????? | | ?????????????????????# g ###??????????????? | | ?????????????????????# #????????????????? | | ?????????????????????# """ #????????????????? | | ?????????????????????# """ #????????????????? | | ?????????????????????# ??" #????????????????? | | ?????????????????????# ???? #????????????????? | | ?????????????????????? ???? ?????????????????? | | ???????????????????????????## ???????????????????? | | ?????????????????????????????????????????????????? | | ?????????????????????????????????????????????????? | | ?????????????????????????????????????????????????? | | ?????????????????????????????????????????????????? | | ?????????????????????????????????????????????????? | +----------------------------------------------------+ Best States ------------- Heat Dissipation 31 Energy Generation 14 Energy Capacity 160 Matter Stores 300 Matter Capacity 300 Sight Range 16 Terrain Scan Density 10 Evasion (%) 50 Targeting Accuracy 8 Recoil Reduction 4 Offensive Hacking 10 Item Schematics ----------------- None Robot Schematics ------------------ None Fabricated ------------ Nothing Alien Tech Used ----------------- None Achievements -------------- Close Call Let's See Who's Tougher Oops Tourist Challenges ------------ None Game ------ Seed PrecisionDataPlatform Manual? 0 Play Time 00:25:08 Cumulative 1.6 hours Start 2024.04.06 @ 18:19:33 End 2024.04.06 @ 18:43:49 Sessions 1 Manual Loads 0 Difficulty Rogue Special Mode None Game No. 2 Rogue 2 Adventurer 0 Explorer 0 Win Type - Total 0 Types 0/0/0/0/0/0/0/0/0 Lore% 1 Gallery% 3 Achievement% 4 Wizard Run 0 Options --------- Layout 0 ASCII 0 Keyboard 0 Movement Mouse Keybinds 0 Fullscreen 2 Font 24/Smallcaps Map View 76x50 Zoom Use 0% Tactical HUD 0 Map Filters NONE Filters NONE Steam 1 RUN: 173f0586-99e9-4764-af6d-c738980edcd4